fUST/lending_fUST_20250729
["ID","MTS","AMOUNT","RATE_DAILY","PERIOD"]
[375898160,1753776674069,-982.29144925,0.00021369,2]
[375898307,1753776675552,9667.72685562,0.0001857,2]
[375898310,1753776675578,10000.0,0.0001857,2]
[375898314,1753776675602,10000.0,0.0001857,2]
[375898317,1753776675626,10000.0,0.0001857,2]
[375898321,1753776675651,10000.0,0.0001857,2]
[375898324,1753776675676,10000.0,0.0001857,2]
[375898328,1753776675701,10000.0,0.0001857,2]
[375898332,1753776675732,10000.0,0.0001857,2]
[375898335,1753776675761,10000.0,0.0001857,2]
[375898339,1753776675787,10000.0,0.0001857,2]
[375898342,1753776675812,10000.0,0.0001857,2]
[375898346,1753776675837,10000.0,0.0001857,2]
[375898349,1753776675861,10000.0,0.0001857,2]
[375898353,1753776675886,10000.0,0.0001857,2]
[375898356,1753776675910,10000.0,0.0001857,2]
[375898360,1753776675934,10000.0,0.0001857,2]
[375898363,1753776675958,10000.0,0.0001857,2]
[375898366,1753776675981,10000.0,0.0001857,2]
[375898370,1753776676005,10000.0,0.0001857,2]
[375898373,1753776676028,10000.0,0.0001857,2]
[375898377,1753776676051,10000.0,0.0001857,2]
[375898380,1753776676074,30000.0,0.0001857,2]
[375898383,1753776676098,30000.0,0.0001857,2]
[375898387,1753776676121,30000.0,0.0001857,2]
[375898390,1753776676145,30000.0,0.0001857,2]
[375898394,1753776676169,30000.0,0.0001857,2]
[375898397,1753776676194,10332.27314438,0.0001857,2]
[375899137,1753776716375,10000.0,0.00018601,2]
[375899139,1753776740621,4694.9929227,0.0001834,2]
[375899140,1753776742018,4972.73393292,0.00018601,2]
[375899141,1753776742041,2924.95606708,0.00018601,2]
[375899145,1753776775269,1000.0,0.00026,120]
[375899161,1753776920816,5000.0,0.000191,6]
[375899165,1753776936884,5000.0,0.000191,6]
[375899166,1753776938200,198.858439,0.00018424,2]
[375899167,1753776938650,450.22692838,0.00018425,2]
[375899168,1753776952434,236.16292614,0.000191,6]
[375899169,1753776964504,433.4646687,0.00018135,2]
[375899170,1753776979114,157.46788711,7.3e-07,2]
[375899178,1753777239885,254.534429,0.0001824,2]
[375899179,1753777240198,162.75478642,0.00018425,2]
[375899180,1753777284776,217.57171,0.00013699,2]
[375899185,1753777345747,561.985067,0.00018123,2]
[375899206,1753777444745,10025.6979165,0.00018117,2]
[375899209,1753777499849,14612.48210081,0.00018129,2]
[375899210,1753777499873,10287.51789919,0.00018129,2]
[375899212,1753777516490,5000.0,0.00018601,2]
[375899216,1753777542277,255.009162,0.0001824,2]
[375899217,1753777542777,185.95777353,0.00018425,2]
[375899222,1753777672136,10622.70104784,0.00018,2]
[375899223,1753777687391,947.60860821,0.00018601,2]
[375899225,1753777706757,1832.87351459,0.000176,2]
[375899228,1753777716547,868.33199464,0.00017,2]
[375899229,1753777716573,30000.0,0.00017,2]
[375899230,1753777716596,30000.0,0.00017,2]
[375899231,1753777716619,22744.45222551,0.00017,2]
[375899234,1753777719531,1514.47257593,0.00018,2]
[375899238,1753777725739,657.99410607,0.0001843,2]
[375899239,1753777726084,5000.0,0.00018601,2]
[375899241,1753777727055,83.08109249,0.0001,2]
[375899242,1753777727078,9947.67793173,0.0001,2]
[375899263,1753777742132,5000.0,0.00018601,2]
[375899264,1753777758152,5000.0,0.00018601,2]
[375899266,1753777766798,5000.0,0.00018601,2]
[375899268,1753777777929,5000.0,0.00018601,2]
[375899269,1753777786289,52.32206827,0.00018601,2]
[375899270,1753777786312,4947.67793173,0.00018601,2]
[375899272,1753777796749,5000.0,0.00018601,2]
[375899274,1753777804806,5000.0,0.00018601,2]
[375899276,1753777813567,5000.0,0.00018601,2]
[375899278,1753777826578,4540.68308553,0.00018601,2]
[375899324,1753777835123,5000.0,0.00018601,2]
[375899388,1753777838811,-3392.19970252,0.000189,2]
[375899390,1753777838822,-2860.47511096,0.00019,2]
[375899392,1753777838832,-1200.0,0.0001907,2]
[375899394,1753777838843,-1200.0,0.00019071,2]
[375899396,1753777838852,-300.0,0.00019071,2]
[375899398,1753777838862,-300.0,0.00019071,2]
[375899400,1753777838873,-300.0,0.00019071,2]
[375899402,1753777838882,-300.0,0.00019071,2]
[375899404,1753777838892,-300.0,0.00019071,2]
[375899406,1753777838901,-1594.9456386,0.00019078,2]
[375899408,1753777838911,-500.0,0.00019173,2]
[375899410,1753777838920,-425.27629089,0.00019173,2]
[375899412,1753777838933,-500.0,0.00019173,2]
[375899414,1753777838943,-500.0,0.00019173,2]
[375899417,1753777838952,-229.95221134,0.00019173,2]
[375899418,1753777838963,-9478.19607449,0.00019173,2]
[375899420,1753777838972,-500.0,0.00019173,2]
[375899422,1753777838982,-500.0,0.00019173,2]
[375899424,1753777838991,-541.53813841,0.00019176,2]
[375899427,1753777839001,-155.0,0.00019177,2]
[375899429,1753777839011,-156.688,0.00019177,2]
[375899431,1753777839021,-460.0,0.00019178,2]
[375899433,1753777839031,-460.0,0.00019178,2]
[375899435,1753777839041,-460.0,0.00019178,2]
[375899437,1753777839051,-460.0,0.00019178,2]
[375899439,1753777839060,-460.0,0.00019178,2]
[375899441,1753777839069,-460.0,0.00019178,2]
[375899443,1753777839079,-460.0,0.00019178,2]
[375899445,1753777839088,-472.89368032,0.00019178,2]
[375899447,1753777839097,-460.0,0.00019178,2]
[375899449,1753777839107,-460.0,0.00019178,2]
[375899451,1753777839117,-462.4329519,0.00019178,2]
[375899453,1753777839126,-460.0,0.00019178,2]
[375899455,1753777839135,-460.0,0.00019178,2]
[375899457,1753777839146,-460.0,0.00019178,2]
[375899459,1753777839155,-460.0,0.00019178,2]
[375899461,1753777839164,-460.0,0.00019178,2]
[375899463,1753777839175,-460.0,0.00019178,2]
[375899465,1753777839186,-460.0,0.00019178,2]
[375899466,1753777839195,-460.0,0.00019178,2]
[375899468,1753777839205,-460.0,0.00019178,2]
[375899470,1753777839214,-460.0,0.00019178,2]
[375899472,1753777839223,-288.62443375,0.00019178,2]
[375899474,1753777839233,-460.0,0.00019178,2]
[375899476,1753777839242,-460.0,0.00019178,2]
[375899478,1753777839251,-460.0,0.00019178,2]
[375899480,1753777839260,-460.0,0.00019178,2]
[375899482,1753777839270,-460.0,0.00019178,2]
[375899484,1753777839279,-460.0,0.00019178,2]
[375899486,1753777839289,-460.0,0.00019178,2]
[375899488,1753777839298,-461.79010418,0.00019178,2]
[375899490,1753777839307,-460.0,0.00019178,2]
[375899492,1753777839316,-460.0,0.00019178,2]
[375899494,1753777839325,-158.70933442,0.00019178,2]
[375899496,1753777839334,-460.0,0.00019178,2]
[375899498,1753777839344,-460.0,0.00019178,2]
[375899500,1753777839353,-460.0,0.00019178,2]
[375899502,1753777839362,-460.0,0.00019178,2]
[375899504,1753777839372,-460.0,0.00019178,2]
[375899506,1753777839381,-460.0,0.00019178,2]
[375899508,1753777839390,-460.0,0.00019178,2]
[375899510,1753777839399,-460.0,0.00019178,2]
[375899512,1753777839408,-460.0,0.00019178,2]
[375899514,1753777839417,-221.3541285,0.00019178,2]
[375899516,1753777839430,-460.0,0.00019178,2]
[375899518,1753777839439,-460.0,0.00019178,2]
[375899520,1753777839448,-577.81,0.00019178,2]
[375899522,1753777839457,-460.0,0.00019178,2]
[375899524,1753777839468,-460.0,0.00019178,2]
[375899526,1753777839477,-255.17114216,0.00019178,2]
[375899528,1753777839487,-460.0,0.00019178,2]
[375899530,1753777839496,-460.0,0.00019178,2]
[375899532,1753777839505,-460.0,0.00019178,2]
[375899534,1753777839514,-460.0,0.00019178,2]
[375899535,1753777839524,-460.0,0.00019178,2]
[375899537,1753777839534,-1534.03,0.00019178,2]
[375899539,1753777839544,-472.74,0.00019178,2]
[375899541,1753777839553,-460.0,0.00019178,2]
[375899543,1753777839562,-460.0,0.00019178,2]
[375899545,1753777839571,-460.0,0.00019178,2]
[375899547,1753777839581,-460.0,0.00019178,2]
[375899549,1753777839591,-460.0,0.00019178,2]
[375899551,1753777839600,-460.0,0.00019178,2]
[375899553,1753777839609,-460.0,0.00019178,2]
[375899555,1753777839619,-460.0,0.00019178,2]
[375899557,1753777839628,-460.0,0.00019178,2]
[375899558,1753777839638,-460.0,0.00019178,2]
[375899560,1753777839647,-262.46234566,0.00019178,2]
[375899562,1753777839657,-461.98880539,0.00019178,2]
[375899564,1753777839666,-801.39,0.00019178,2]
[375899566,1753777839676,-333.51273046,0.00019178,2]
[375899568,1753777839685,-460.0,0.00019178,2]
[375899570,1753777839695,-460.0,0.00019178,2]
[375899572,1753777839704,-460.0,0.00019178,2]
[375899574,1753777839713,-460.0,0.00019178,2]
[375899576,1753777839722,-460.0,0.00019178,2]
[375899578,1753777839732,-460.0,0.00019178,2]
[375899580,1753777839742,-460.0,0.00019178,2]
[375899582,1753777839751,-460.0,0.00019178,2]
[375899584,1753777839761,-460.0,0.00019178,2]
[375899585,1753777839771,-460.0,0.00019178,2]
[375899587,1753777839780,-460.0,0.00019178,2]
[375899589,1753777839790,-460.0,0.00019178,2]
[375899591,1753777839804,-460.0,0.00019178,2]
[375899593,1753777839814,-460.0,0.00019178,2]
[375899596,1753777839826,-460.0,0.00019178,2]
[375899598,1753777839836,-460.0,0.00019178,2]
[375899600,1753777839847,-460.0,0.00019178,2]
[375899601,1753777839856,-1660.14,0.00019178,2]
[375899603,1753777839865,-576.19900091,0.00019178,2]
[375899605,1753777839876,-460.0,0.00019178,2]
[375899607,1753777839886,-460.0,0.00019178,2]
[375899609,1753777839895,-460.0,0.00019178,2]
[375899611,1753777839905,-460.0,0.00019178,2]
[375899612,1753777839915,-460.0,0.00019178,2]
[375899614,1753777839925,-460.0,0.00019178,2]
[375899616,1753777839934,-460.0,0.00019178,2]
[375899618,1753777839943,-460.0,0.00019178,2]
[375899620,1753777839952,-573.32,0.00019178,2]
[375899622,1753777839962,-460.0,0.00019178,2]
[375899625,1753777839971,-460.0,0.00019178,2]
[375899627,1753777839982,-460.0,0.00019178,2]
[375899628,1753777839991,-460.0,0.00019178,2]
[375899630,1753777840000,-169.12,0.00019178,2]
[375899632,1753777840010,-460.0,0.00019178,2]
[375899634,1753777840019,-460.0,0.00019178,2]
[375899636,1753777840028,-460.0,0.00019178,2]
[375899638,1753777840038,-460.0,0.00019178,2]
[375899640,1753777840047,-701.38,0.00019178,2]
[375899642,1753777840056,-465.94754947,0.00019178,2]
[375899644,1753777840065,-460.0,0.00019178,2]
[375899646,1753777840075,-460.0,0.00019178,2]
[375899648,1753777840084,-460.0,0.00019178,2]
[375899650,1753777840093,-460.0,0.00019178,2]
[375899652,1753777840102,-460.0,0.00019178,2]
[375899654,1753777840111,-460.0,0.00019178,2]
[375899656,1753777840121,-460.0,0.00019178,2]
[375899658,1753777840130,-460.0,0.00019178,2]
[375899659,1753777840140,-460.0,0.00019178,2]
[375899661,1753777840150,-460.0,0.00019178,2]
[375899663,1753777840159,-460.0,0.00019178,2]
[375899665,1753777840169,-460.0,0.00019178,2]
[375899667,1753777840179,-460.0,0.00019178,2]
[375899669,1753777840188,-460.0,0.00019178,2]
[375899670,1753777840198,-510.74,0.00019178,2]
[375899672,1753777840207,-516.04,0.00019178,2]
[375899674,1753777840217,-460.0,0.00019178,2]
[375899676,1753777840226,-460.0,0.00019178,2]
[375899677,1753777840236,-2540.39,0.00019178,2]
[375899678,1753777840246,-4886.72,0.00019178,2]
[375899679,1753777840255,-495.15,0.00019178,2]
[375899680,1753777840264,-460.0,0.00019178,2]
[375899681,1753777840273,-3833.38,0.00019178,2]
[375899682,1753777840282,-913.24,0.00019178,2]
[375899683,1753777840291,-460.0,0.00019178,2]
[375899684,1753777840301,-460.0,0.00019178,2]
[375899685,1753777840311,-472.04,0.00019178,2]
[375899686,1753777840320,-460.0,0.00019178,2]
[375899687,1753777840330,-460.0,0.00019178,2]
[375899688,1753777840339,-460.0,0.00019178,2]
[375899689,1753777840348,-460.0,0.00019178,2]
[375899690,1753777840357,-460.0,0.00019178,2]
[375899691,1753777840366,-460.0,0.00019178,2]
[375899692,1753777840376,-460.0,0.00019178,2]
[375899693,1753777840385,-460.0,0.00019178,2]
[375899694,1753777840395,-460.0,0.00019178,2]
[375899695,1753777840404,-460.0,0.00019178,2]
[375899696,1753777840413,-460.0,0.00019178,2]
[375899697,1753777840422,-460.0,0.00019178,2]
[375899698,1753777840432,-601.1,0.00019178,2]
[375899699,1753777840442,-332.48401846,0.00019178,2]
[375899700,1753777840450,-2152.81,0.00019178,2]
[375899701,1753777840460,-1709.36,0.00019178,2]
[375899702,1753777840470,-997.34,0.00019178,2]
[375899703,1753777840479,-460.0,0.00019178,2]
[375899704,1753777840488,-460.0,0.00019178,2]
[375899705,1753777840497,-460.0,0.00019178,2]
[375899706,1753777840507,-460.0,0.00019178,2]
[375899707,1753777840516,-460.0,0.00019178,2]
[375899708,1753777840526,-674.86,0.00019178,2]
[375899709,1753777840535,-573.09,0.00019178,2]
[375899710,1753777840546,-372.42501981,0.00019178,2]
[375899711,1753777840556,-460.0,0.00019178,2]
[375899712,1753777840565,-460.0,0.00019178,2]
[375899713,1753777840575,-460.0,0.00019178,2]
[375899714,1753777840584,-460.0,0.00019178,2]
[375899715,1753777840594,-576.8137197,0.00019178,2]
[375899716,1753777840604,-460.0,0.00019178,2]
[375899717,1753777840613,-460.0,0.00019178,2]
[375899718,1753777840622,-460.0,0.00019178,2]
[375899719,1753777840631,-460.0,0.00019178,2]
[375899720,1753777840641,-460.0,0.00019178,2]
[375899721,1753777840650,-460.0,0.00019178,2]
[375899722,1753777840660,-460.0,0.00019178,2]
[375899723,1753777840669,-460.0,0.00019178,2]
[375899724,1753777840678,-460.0,0.00019178,2]
[375899725,1753777840688,-460.0,0.00019178,2]
[375899726,1753777840698,-460.0,0.00019178,2]
[375899727,1753777840707,-460.0,0.00019178,2]
[375899728,1753777840717,-460.0,0.00019178,2]
[375899729,1753777840726,-693.69,0.00019178,2]
[375899730,1753777840736,-460.0,0.00019178,2]
[375899731,1753777840745,-1401.07,0.00019178,2]
[375899732,1753777840755,-582.34,0.00019178,2]
[375899733,1753777840765,-460.0,0.00019178,2]
[375899734,1753777840774,-460.0,0.00019178,2]
[375899735,1753777840784,-460.0,0.00019178,2]
[375899736,1753777840795,-460.0,0.00019178,2]
[375899737,1753777840806,-152.03070038,0.00019178,2]
[375899745,1753777840931,-460.0,0.00019178,2]
[375899747,1753777840941,-460.0,0.00019178,2]
[375899748,1753777840951,-1440.82,0.00019178,2]
[375899750,1753777840961,-460.0,0.00019178,2]
[375899752,1753777840971,-460.0,0.00019178,2]
[375899754,1753777840981,-578.34,0.00019178,2]
[375899756,1753777840991,-460.0,0.00019178,2]
[375899758,1753777841000,-696.14,0.00019178,2]
[375899760,1753777841010,-460.0,0.00019178,2]
[375899762,1753777841020,-1546.43,0.00019178,2]
[375899764,1753777841030,-460.0,0.00019178,2]
[375899766,1753777841039,-460.0,0.00019178,2]
[375899768,1753777841049,-460.0,0.00019178,2]
[375899770,1753777841058,-460.0,0.00019178,2]
[375899772,1753777841068,-366.22859622,0.00019178,2]
[375899774,1753777841077,-613.72,0.00019178,2]
[375899776,1753777841086,-460.0,0.00019178,2]
[375899777,1753777841095,-460.0,0.00019178,2]
[375899779,1753777841105,-460.0,0.00019178,2]
[375899781,1753777841115,-460.0,0.00019178,2]
[375899783,1753777841125,-460.85160078,0.00019178,2]
[375899785,1753777841134,-460.0,0.00019178,2]
[375899787,1753777841143,-460.0,0.00019178,2]
[375899789,1753777841153,-563.36,0.00019178,2]
[375899791,1753777841162,-460.0,0.00019178,2]
[375899793,1753777841171,-460.0,0.00019178,2]
[375899795,1753777841181,-460.0,0.00019178,2]
[375899797,1753777841190,-460.0,0.00019178,2]
[375899799,1753777841200,-2323.94,0.00019178,2]
[375899801,1753777841209,-460.0,0.00019178,2]
[375899803,1753777841219,-460.0,0.00019178,2]
[375899805,1753777841228,-460.0,0.00019178,2]
[375899807,1753777841238,-484.93,0.00019178,2]
[375899809,1753777841248,-460.0,0.00019178,2]
[375899810,1753777841257,-460.0,0.00019178,2]
[375899812,1753777841267,-1261.83,0.00019178,2]
[375899814,1753777841277,-460.0,0.00019178,2]
[375899816,1753777841286,-460.0,0.00019178,2]
[375899818,1753777841296,-460.0,0.00019178,2]
[375899820,1753777841305,-460.0,0.00019178,2]
[375899822,1753777841315,-460.0,0.00019178,2]
[375899824,1753777841325,-460.0,0.00019178,2]
[375899826,1753777841334,-500.0,0.00019178,2]
[375899828,1753777841344,-234.059018,0.00019178,2]
[375899830,1753777841355,-566.93308151,0.00019251,2]
[375899832,1753777841365,-378.75606365,0.00019254,2]
[375899834,1753777841374,-500.0,0.00019272,2]
[375899836,1753777841384,-500.0,0.00019272,2]
[375899838,1753777841394,-156.45418352,0.00019272,2]
[375899840,1753777841404,-452.24548985,0.00019272,2]
[375899842,1753777841417,-500.0,0.00019272,2]
[375899844,1753777841426,-500.0,0.00019272,2]
[375899846,1753777841436,-500.0,0.00019272,2]
[375899848,1753777841445,-500.0,0.00019272,2]
[375899850,1753777841455,-500.0,0.00019272,2]
[375899852,1753777841464,-368.38378394,0.00019272,2]
[375899854,1753777841474,-587.01440606,0.00019272,2]
[375899856,1753777841483,-500.0,0.00019272,2]
[375899858,1753777841493,-500.0,0.00019272,2]
[375899860,1753777841503,-500.0,0.00019272,2]
[375899862,1753777841512,-500.0,0.00019272,2]
[375899864,1753777841522,-500.0,0.00019272,2]
[375899866,1753777841531,-500.0,0.00019272,2]
[375899868,1753777841541,-500.0,0.00019272,2]
[375899870,1753777841550,-500.0,0.00019272,2]
[375899872,1753777841560,-500.0,0.00019272,2]
[375899874,1753777841570,-500.0,0.00019272,2]
[375899876,1753777841580,-1262.20057168,0.00019273,2]
[375899878,1753777841590,-289.69474612,0.00019273,2]
[375899879,1753777841600,-541.53813841,0.00019273,2]
[375899881,1753777841609,-149048.40334646,0.00019352,2]
[375899884,1753777841627,-9053.97864907,0.00019352,2]
[375899886,1753777841639,-211897.61800447,0.00019352,2]
[375899888,1753777841649,-500.0,0.00019373,2]
[375899890,1753777841660,-500.0,0.00019373,2]
[375899892,1753777841670,-500.0,0.00019373,2]
[375899894,1753777841681,-500.0,0.00019373,2]
[375899896,1753777841691,-151.0,0.00019403,2]
[375899898,1753777841700,-460.0,0.00019451,2]
[375899900,1753777841710,-321.15833953,0.00019451,2]
[375899902,1753777841719,-462.97268453,0.00019451,2]
[375899904,1753777841729,-460.0,0.00019451,2]
[375899906,1753777841739,-460.0,0.00019451,2]
[375899908,1753777841748,-460.0,0.00019451,2]
[375899910,1753777841757,-460.0,0.00019451,2]
[375899912,1753777841767,-1888.67,0.00019451,2]
[375899913,1753777841776,-1279.83,0.00019451,2]
[375899915,1753777841786,-460.0,0.00019451,2]
[375899917,1753777841799,-200.0,0.00019451,15]
[375899919,1753777841809,-200.0,0.00019451,15]
[375899921,1753777841818,-200.0,0.00019451,15]
[375899923,1753777841828,-200.0,0.00019451,15]
[375899925,1753777841839,-557.39,0.00019451,2]
[375899927,1753777841849,-460.0,0.00019452,2]
[375899929,1753777841858,-460.0,0.00019452,2]
[375899931,1753777841868,-151.0,0.00019452,2]
[375899933,1753777841880,-460.0,0.00019452,2]
[375899935,1753777841892,-460.0,0.00019452,2]
[375899937,1753777841901,-465.86941834,0.00019452,2]
[375899939,1753777841911,-460.0,0.00019452,2]
[375899941,1753777841921,-460.0,0.00019452,2]
[375899943,1753777841931,-460.0,0.00019452,2]
[375899945,1753777841940,-460.0,0.00019452,2]
[375899947,1753777841950,-460.0,0.00019452,2]
[375899949,1753777841959,-316.16200497,0.00019452,2]
[375899951,1753777841969,-460.0,0.00019452,2]
[375899953,1753777841979,-460.0,0.00019452,2]
[375899955,1753777841988,-460.0,0.00019452,2]
[375899957,1753777841997,-460.0,0.00019452,2]
[375899959,1753777842007,-460.0,0.00019452,2]
[375899961,1753777842016,-460.0,0.00019452,2]
[375899963,1753777842026,-460.0,0.00019452,2]
[375899965,1753777842035,-460.0,0.00019452,2]
[375899967,1753777842045,-340.45414761,0.00019452,2]
[375899969,1753777842054,-460.0,0.00019452,2]
[375899970,1753777842063,-460.0,0.00019452,2]
[375899972,1753777842073,-460.0,0.00019452,2]
[375899974,1753777842082,-460.0,0.00019452,2]
[375899976,1753777842092,-460.0,0.00019452,2]
[375899978,1753777842101,-460.0,0.00019452,2]
[375899980,1753777842111,-460.0,0.00019452,2]
[375899982,1753777842121,-577.81,0.00019452,2]
[375899984,1753777842132,-460.0,0.00019452,2]
[375899986,1753777842142,-460.0,0.00019452,2]
[375899988,1753777842152,-460.0,0.00019452,2]
[375899990,1753777842162,-460.0,0.00019452,2]
[375899992,1753777842171,-460.0,0.00019452,2]
[375899994,1753777842182,-460.0,0.00019452,2]
[375899996,1753777842191,-1534.03,0.00019452,2]
[375899998,1753777842201,-472.74,0.00019452,2]
[375900000,1753777842211,-460.0,0.00019452,2]
[375900002,1753777842220,-460.0,0.00019452,2]
[375900004,1753777842230,-410.79503723,0.00019452,2]
[375900006,1753777842239,-460.0,0.00019452,2]
[375900008,1753777842249,-460.0,0.00019452,2]
[375900010,1753777842258,-460.0,0.00019452,2]
[375900011,1753777842267,-460.0,0.00019452,2]
[375900013,1753777842280,-592.19254262,0.00019452,2]
[375900015,1753777842290,-460.0,0.00019452,2]
[375900017,1753777842300,-801.39,0.00019452,2]
[375900019,1753777842309,-460.0,0.00019452,2]
[375900021,1753777842318,-460.0,0.00019452,2]
[375900023,1753777842328,-460.0,0.00019452,2]
[375900025,1753777842337,-460.0,0.00019452,2]
[375900027,1753777842347,-460.0,0.00019452,2]
[375900029,1753777842357,-460.0,0.00019452,2]
[375900031,1753777842367,-460.0,0.00019452,2]
[375900033,1753777842377,-460.0,0.00019452,2]
[375900035,1753777842387,-460.0,0.00019452,2]
[375900037,1753777842397,-460.0,0.00019452,2]
[375900039,1753777842406,-460.0,0.00019452,2]
[375900041,1753777842415,-1660.14,0.00019452,2]
[375900043,1753777842425,-460.0,0.00019452,2]
[375900045,1753777842435,-337.73874921,0.00019452,2]
[375900047,1753777842444,-460.0,0.00019452,2]
[375900049,1753777842454,-460.0,0.00019452,2]
[375900051,1753777842464,-460.0,0.00019452,2]
[375900052,1753777842474,-460.0,0.00019452,2]
[375900054,1753777842484,-573.32,0.00019452,2]
[375900056,1753777842494,-460.0,0.00019452,2]
[375900058,1753777842503,-460.0,0.00019452,2]
[375900060,1753777842513,-460.0,0.00019452,2]
[375900062,1753777842523,-460.0,0.00019452,2]
[375900064,1753777842532,-460.0,0.00019452,2]
[375900066,1753777842542,-460.0,0.00019452,2]
[375900068,1753777842551,-460.0,0.00019452,2]
[375900070,1753777842561,-701.38,0.00019452,2]
[375900072,1753777842571,-460.0,0.00019452,2]
[375900074,1753777842581,-460.0,0.00019452,2]
[375900076,1753777842590,-460.0,0.00019452,2]
[375900078,1753777842600,-460.0,0.00019452,2]
[375900080,1753777842610,-460.0,0.00019452,2]
[375900082,1753777842620,-460.0,0.00019452,2]
[375900084,1753777842629,-460.0,0.00019452,2]
[375900086,1753777842639,-460.0,0.00019452,2]
[375900088,1753777842650,-460.0,0.00019452,2]
[375900090,1753777842660,-460.0,0.00019452,2]
[375900092,1753777842669,-460.0,0.00019452,2]
[375900094,1753777842680,-510.74,0.00019452,2]
[375900096,1753777842691,-516.04,0.00019452,2]
[375900098,1753777842700,-460.0,0.00019452,2]
[375900100,1753777842711,-460.0,0.00019452,2]
[375900102,1753777842721,-2540.39,0.00019452,2]
[375900104,1753777842730,-4886.72,0.00019452,2]
[375900106,1753777842740,-495.15,0.00019452,2]
[375900108,1753777842750,-460.0,0.00019452,2]
[375900110,1753777842760,-3833.38,0.00019452,2]
[375900112,1753777842770,-913.24,0.00019452,2]
[375900114,1753777842780,-460.0,0.00019452,2]
[375900116,1753777842790,-460.0,0.00019452,2]
[375900118,1753777842806,-472.04,0.00019452,2]
[375900121,1753777842816,-460.0,0.00019452,2]
[375900124,1753777842826,-460.0,0.00019452,2]
[375900127,1753777842836,-460.0,0.00019452,2]
[375900130,1753777842848,-460.0,0.00019452,2]
[375900132,1753777842858,-460.0,0.00019452,2]
[375900135,1753777842871,-460.0,0.00019452,2]
[375900138,1753777842883,-460.0,0.00019452,2]
[375900141,1753777842893,-460.0,0.00019452,2]
[375900144,1753777842905,-460.0,0.00019452,2]
[375900147,1753777842914,-460.0,0.00019452,2]
[375900150,1753777842925,-601.1,0.00019452,2]
[375900152,1753777842935,-2152.81,0.00019452,2]
[375900155,1753777842944,-1709.36,0.00019452,2]
[375900158,1753777842953,-997.34,0.00019452,2]
[375900161,1753777842963,-460.0,0.00019452,2]
[375900164,1753777842972,-460.0,0.00019452,2]
[375900167,1753777842983,-460.0,0.00019452,2]
[375900170,1753777842993,-460.0,0.00019452,2]
[375900173,1753777843003,-674.86,0.00019452,2]
[375900176,1753777843012,-573.09,0.00019452,2]
[375900179,1753777843022,-460.0,0.00019452,2]
[375900182,1753777843033,-460.0,0.00019452,2]
[375900185,1753777843042,-463.71018066,0.00019452,2]
[375900188,1753777843051,-460.0,0.00019452,2]
[375900191,1753777843061,-460.0,0.00019452,2]
[375900193,1753777843071,-460.0,0.00019452,2]
[375900195,1753777843081,-460.0,0.00019452,2]